bitfinex/quotes_ETHUSD_20220202
["timestamp","ask_amount","ask_price","bid_price","bid_amount"]
[1643801516897,1.09161176,2763.4,2762.9,0.00168419]
[1643801517096,0.91071176,2763.4,2762.7,0.00168419]
[1643801517698,0.38355763,2763.3,2762.5,0.00168419]
[1643801517948,1.28848763,2763.3,2762.5,0.91709003]
[1643801518146,0.90493,2763.3,2762.6,0.00168419]
[1643801518646,1.96459143,2763.2,2762.6,0.00168419]
[1643801519252,1.71625543,2763.1,2762.6,0.00168419]
[1643801519448,0.42426781,2762.9,2762.6,0.00168419]
[1643801519651,0.1809,2762.8,2762.2,0.00168419]
[1643801519847,0.82380019,2762.5,2762.2,0.00168419]
[1643801520247,0.82282057,2762.5,2762.0,2.00168419]
[1643801520551,1.95592057,2762.5,2762.0,0.00168419]
[1643801520749,1.95592057,2762.5,2762.1,0.00168419]
[1643801521793,2.86109057,2762.5,2761.9,0.00168419]
[1643801523299,3.16109057,2762.5,2761.9,0.00168419]
[1643801523900,3.34199057,2762.5,2761.9,0.00168419]
[1643801524500,4.24721057,2762.5,2761.9,0.00168419]
[1643801524699,4.06631057,2762.5,2761.9,0.00168419]
[1643801525101,4.06631057,2762.5,2761.6,0.18258419]
[1643801525744,4.06631057,2762.5,2761.7,0.00168419]
[1643801526149,0.90527,2762.4,2761.7,0.00168419]
[1643801526447,1.2053,2762.3,2761.7,0.00168419]
[1643801526646,0.9053,2762.3,2761.5,1.96332335]
[1643801526844,0.68468937,2762.0,2761.5,1.96332335]
[1643801527244,0.68468937,2762.0,2761.6,0.00168419]
[1643801527844,0.98468937,2762.0,2761.6,0.00168419]
[1643801528050,1.89006937,2762.0,2761.6,0.00168419]
[1643801528249,0.1809,2761.9,2761.6,0.00168419]
[1643801528452,0.1809,2761.9,2761.5,0.1809]
[1643801528453,0.38629104,2761.7,2761.5,0.1809]
[1643801528655,0.1809,2761.6,2761.5,0.1809]
[1643801528850,0.1809,2761.6,2761.1,0.00168419]
[1643801528851,0.90779957,2761.4,2761.1,0.00168419]
[1643801529093,0.90779957,2761.4,2760.9,0.00168419]
[1643801529394,2.11342957,2761.4,2760.9,0.00168419]
[1643801529592,2.11342957,2761.4,2760.7,0.00168419]
[1643801529593,1.20779957,2761.4,2760.7,0.00168419]
[1643801530900,0.1809,2761.3,2760.7,0.00168419]
[1643801532301,0.1809,2761.3,2760.4,2.00168419]
[1643801532502,0.4811,2761.4,2760.5,0.1811]
[1643801532701,0.1809,2761.5,2760.5,0.1811]
[1643801532949,0.1809,2761.5,2760.6,0.00168419]
[1643801533347,0.79243715,2761.4,2760.7,0.93975971]
[1643801533546,0.79243715,2761.4,2760.8,0.00168419]
[1643801534549,0.79243715,2761.4,2760.6,0.00168419]
[1643801536696,0.1809,2761.5,2760.6,0.00168419]
[1643801536898,0.1809,2761.5,2760.7,0.01212881]
[1643801537099,0.1809,2761.5,2760.7,0.013813]
[1643801537300,0.1809,2761.5,2760.7,0.536813]
[1643801537499,0.1809,2761.5,2760.8,2.53950499]
[1643801537700,1.9534212,2761.6,2760.9,0.9409837]
[1643801537899,1.9534212,2761.6,2761.0,1.99803613]
[1643801538101,0.7911212,2761.6,2761.0,1.99803613]
[1643801538301,0.7911212,2761.6,2761.1,0.00168419]
[1643801540547,0.7911212,2761.6,2760.9,0.00168419]
[1643801540747,0.34368291,2762.0,2761.1,0.33503873]
[1643801541047,8.1664215,2762.7,2761.1,0.33503873]
[1643801541048,0.181,2761.9,2761.3,0.02119441]
[1643801541246,0.18101,2762.2,2761.3,0.01250529]
[1643801541448,0.93365087,2762.0,2761.3,0.01250529]
[1643801541649,0.1809,2761.9,2761.3,0.01250529]
[1643801541846,0.1809,2761.9,2761.3,0.01418948]
[1643801542047,0.1809,2762.1,2761.8,0.01239034]
[1643801542247,0.1809,2762.6,2761.8,0.01239034]
[1643801542451,0.32164871,2762.5,2761.8,0.01239034]
[1643801542651,0.1809,2762.4,2761.8,0.01239034]
[1643801542848,0.1809,2762.4,2761.5,0.00168419]
[1643801542849,0.1809,2762.4,2761.5,2.00168419]
[1643801543053,0.77337388,2761.9,2761.6,0.00168419]
[1643801543654,0.77337388,2761.9,2761.4,0.00168419]
[1643801544107,0.95438388,2761.9,2761.4,0.00168419]
[1643801544308,0.95438388,2761.9,2761.2,0.01266377]
[1643801544309,0.1809,2761.8,2761.2,0.01266377]
[1643801544510,0.77337388,2761.9,2761.2,0.01266377]
[1643801544710,1.24646188,2761.9,2761.2,0.01266377]
[1643801545109,1.24646188,2761.9,2761.1,0.00168419]
[1643801545110,0.69634171,2761.4,2761.1,0.00168419]
[1643801545309,0.4809,2761.9,2761.1,0.00168419]
[1643801545310,1.2223,2761.8,2761.1,0.00168419]
[1643801545510,0.1809,2761.9,2761.1,0.00168419]
[1643801546414,0.77702919,2761.6,2761.1,0.00168419]
[1643801549550,0.77702919,2761.6,2760.9,7.46168419]
[1643801549750,0.77702919,2761.6,2761.0,0.00170589]
[1643801554901,1.07702919,2761.6,2761.0,0.00170589]
[1643801556749,0.77702919,2761.6,2761.0,0.00170589]
[1643801559798,1.0864,2761.7,2761.0,0.00170589]
[1643801559996,0.9055,2761.7,2761.0,0.00170589]
[1643801560999,1.2055,2761.7,2761.0,0.00170589]
[1643801561596,0.35507688,2761.6,2761.0,0.00170589]
[1643801561798,0.53597688,2761.6,2761.0,0.00170589]
[1643801561996,0.1809,2761.6,2761.0,0.00170589]
[1643801562875,0.70088216,2761.5,2761.0,0.00170589]
[1643801563076,1.3864,2761.7,2761.0,0.00170589]
[1643801563879,0.4809,2761.7,2761.0,0.00170589]
[1643801564078,0.1809,2761.7,2761.0,0.00170589]
[1643801564278,0.76831063,2761.7,2761.0,0.00170589]
[1643801564680,1.6346,2761.8,2761.0,0.00170589]
[1643801564884,1.53594008,2761.7,2761.0,0.00170589]
[1643801565983,1.53594008,2761.7,2761.0,0.91711173]
[1643801566184,1.4537,2761.8,2761.1,0.00170589]
[1643801566383,1.53592092,2761.7,2761.1,0.00170589]
[1643801567104,0.75740859,2761.5,2761.1,0.00170589]
[1643801568206,0.75740859,2761.5,2761.1,0.91711173]
[1643801568406,1.76999009,2761.8,2761.1,0.91711173]
[1643801568610,1.53587912,2761.7,2761.2,0.00170589]
[1643801569207,1.53587912,2761.7,2761.0,0.91711173]
[1643801569608,0.70606901,2761.6,2761.0,0.91711173]
[1643801569811,0.70606901,2761.6,2761.1,0.00170589]
[1643801570846,0.70606901,2761.6,2761.1,0.91711173]
[1643801571043,0.70606901,2761.6,2761.1,0.00170589]
[1643801572648,0.70606901,2761.6,2761.1,0.91711173]
[1643801574300,0.70469777,2761.6,2761.1,0.91711173]
[1643801574904,1.00469777,2761.6,2761.1,0.91711173]
[1643801576005,0.70469777,2761.6,2761.1,0.91711173]
[1643801579650,0.70469777,2761.6,2761.1,0.91540584]
[1643801580251,1.48570777,2761.6,2761.1,0.91540584]
[1643801580555,1.48570777,2761.6,2760.9,0.00170589]
[1643801580556,1.53609919,2761.5,2760.9,0.00170589]
[1643801580750,1.53609919,2761.5,2760.7,0.00170589]
[1643801580751,0.1809,2761.4,2760.7,0.00170589]
[1643801580951,0.36847151,2761.1,2760.7,0.00170589]
[1643801581151,1.0789168,2761.0,2760.6,0.91540584]
[1643801581352,1.9834068,2761.0,2760.6,0.91540584]
[1643801581601,1.53629198,2760.9,2760.4,0.91711173]
[1643801581802,1.53629198,2760.9,2760.4,0.91540584]
[1643801582395,1.53629198,2760.9,2760.4,0.91711173]
[1643801582794,0.87283148,2760.5,2760.4,0.91711173]
[1643801583003,0.87283148,2760.5,2760.4,0.91540584]
[1643801583202,0.87283148,2760.5,2760.1,1.37809856]
[1643801583203,0.87283148,2760.5,2760.2,0.91540584]
[1643801583400,0.87283148,2760.5,2760.1,0.91711173]
[1643801583603,0.87283148,2760.5,2760.2,0.91540584]
[1643801584003,0.87283148,2760.5,2760.3,0.91540584]
[1643801584400,0.87283148,2760.5,2760.1,0.91711173]
[1643801584600,1.77874688,2760.5,2760.1,0.00170589]
[1643801584799,1.77874688,2760.5,2760.1,0.91711173]
[1643801585000,0.48101,2760.4,2760.0,0.91540584]
[1643801585201,0.48101,2760.4,2759.9,0.91711173]
[1643801585648,2.07874688,2760.5,2759.9,0.91711173]
[1643801585649,0.36114466,2760.1,2759.9,0.91711173]
[1643801585851,0.67240679,2760.0,2759.9,0.91540584]
[1643801586547,0.67240679,2760.0,2759.8,0.91540584]
[1643801587954,0.67240679,2760.0,2759.7,0.91540584]
[1643801588754,0.67240679,2760.0,2759.6,0.91540584]
[1643801588955,0.67240679,2760.0,2759.7,0.91540584]
[1643801589198,1.04336438,2760.0,2759.7,0.91540584]
[1643801589398,0.67240679,2760.0,2759.6,0.91540584]
[1643801590599,0.67240679,2760.0,2759.5,0.1811]
[1643801591006,0.67240679,2760.0,2759.5,1.09650584]
[1643801591304,0.67240679,2760.0,2759.5,0.1811]
[1643801593059,1.78240679,2760.0,2759.5,0.1811]
[1643801594256,1.78240679,2760.0,2759.4,0.00170589]
[1643801594859,1.11,2760.0,2759.4,0.00170589]
[1643801596059,1.11,2760.0,2759.4,0.86174085]
[1643801596265,0.1811,2760.1,2759.4,0.86174085]
[1643801596461,0.1811,2760.3,2759.4,3.57079748]
[1643801596896,0.17954466,2760.3,2759.4,3.57079748]
[1643801597702,0.17954466,2760.3,2759.4,4.47664748]
[1643801598302,0.17954466,2760.3,2759.5,0.91540584]
[1643801598504,1.355,2760.4,2759.6,0.00170589]
[1643801599706,3.31354418,2760.4,2759.6,0.00170589]
[1643801601955,0.18101,2760.3,2759.6,0.00170589]
[1643801603157,1.2745087,2760.0,2759.6,0.00170589]
[1643801603357,2.3079087,2760.0,2759.4,0.00170589]
[1643801603556,1.96366508,2759.9,2759.4,0.00170589]
[1643801603956,1.96366508,2759.9,2759.2,0.00170589]
[1643801604199,1.96366508,2759.9,2759.2,0.18280589]
[1643801604699,1.96366508,2759.9,2759.3,0.00170589]
[1643801604700,1.33701105,2759.5,2759.3,0.00170589]
[1643801605101,1.33701105,2759.5,2758.9,0.00170589]
[1643801605697,2.05968063,2759.4,2758.9,0.00170589]
[1643801606500,2.05968063,2759.4,2758.7,0.00170589]
[1643801606501,2.92508063,2759.4,2758.7,0.00170589]
[1643801606702,0.90633,2759.3,2758.7,0.00170589]
[1643801606899,0.8920718,2758.9,2758.7,0.00170589]
[1643801607103,1.21080854,2758.9,2758.4,0.1812]
[1643801607499,1.21080854,2758.9,2758.8,0.0887]
[1643801607700,1.39181854,2758.9,2758.8,0.0887]
[1643801608149,1.39181854,2758.9,2758.4,0.18290589]
[1643801608749,2.07830342,2758.8,2758.4,0.18290589]
[1643801608950,2.07830342,2758.8,2758.0,7.1503]
[1643801608951,0.18101,2758.7,2758.1,0.00170589]
[1643801609950,0.78613748,2758.2,2758.1,0.00170589]
[1643801610151,0.78613748,2758.2,2758.0,0.25]
[1643801611353,1.93441027,2758.1,2757.8,0.00170589]
[1643801611600,1.93441027,2758.1,2757.6,0.00170589]
[1643801612204,0.36778139,2757.9,2757.6,0.00170589]
[1643801612403,2.11542027,2758.1,2757.4,0.18290589]
[1643801612404,0.18101,2758.1,2757.4,0.18290589]
[1643801613105,2.18101,2758.1,2757.4,0.18290589]
[1643801613314,0.44807525,2757.5,2757.4,0.18290589]
[1643801613507,1.12124406,2757.5,2757.4,0.1812]
[1643801615011,3.21690157,2757.5,2756.8,0.00170589]
[1643801616147,0.67316881,2757.5,2756.8,0.00170589]
[1643801616550,2.62508436,2757.5,2756.8,0.00170589]
[1643801617152,0.76439147,2757.0,2756.8,0.00170589]
[1643801617348,0.76439147,2757.0,2756.6,0.25]
[1643801617549,0.42686131,2757.3,2756.6,0.25]
[1643801617550,2.11506622,2757.2,2756.6,0.25]
[1643801617749,0.42686131,2757.3,2756.6,0.25]
[1643801617954,2.27416481,2757.5,2756.6,0.25170589]
[1643801618353,1.97652582,2757.5,2756.6,0.25170589]
[1643801618553,0.7058819,2757.3,2756.7,0.00170589]
[1643801619197,2.69785621,2757.3,2756.7,0.00170589]
[1643801619400,2.69302016,2757.3,2756.7,0.00170589]
[1643801619997,2.66943182,2757.3,2756.7,0.00170589]
[1643801620201,2.71397251,2757.3,2756.7,0.00170589]
[1643801620401,0.7058819,2757.3,2756.7,0.00170589]
[1643801620800,2.15104388,2757.5,2756.7,0.00170589]
[1643801621002,2.1958245,2757.7,2756.7,0.18290589]
[1643801621204,2.36679322,2757.7,2756.8,0.00170589]
[1643801621404,2.66679322,2757.7,2756.8,0.00170589]
[1643801621605,0.18101,2757.6,2756.8,0.00170589]
[1643801621803,0.43670831,2757.4,2756.8,0.00170589]
[1643801622004,0.72325744,2757.1,2756.8,0.00170589]
[1643801622306,0.72325744,2757.1,2756.7,0.1812]
[1643801622505,2.0070536,2757.0,2756.6,0.25170589]
[1643801622706,0.72325744,2757.1,2756.6,0.25170589]
[1643801622951,2.49678767,2757.4,2756.6,0.25170589]
[1643801623152,2.49678767,2757.4,2756.7,0.00170589]
[1643801623357,0.18101,2757.4,2756.8,0.39639922]
[1643801623555,1.6905,2757.8,2756.7,0.00170589]
[1643801623556,0.36221,2757.7,2756.7,0.00170589]
[1643801623754,1.96028671,2757.6,2756.7,0.00170589]
[1643801624154,0.86726655,2757.4,2756.7,0.00170589]
[1643801624753,2.85565726,2757.4,2756.7,0.00170589]
[1643801624958,0.86726655,2757.4,2756.7,0.00170589]
[1643801625153,0.86726655,2757.4,2756.7,0.18290589]
[1643801625356,0.86726655,2757.4,2756.8,0.00170589]
[1643801625753,0.86726655,2757.4,2756.8,0.05286246]
[1643801625754,1.96416117,2757.3,2756.8,0.05286246]
[1643801625959,1.98587127,2757.3,2756.8,0.05286246]
[1643801626900,0.35406237,2757.1,2756.8,0.05286246]
[1643801627102,1.9784345,2757.0,2756.8,0.05115657]
[1643801627302,2.15412569,2757.2,2756.8,0.05115657]
[1643801627603,1.04827655,2757.4,2756.8,0.05115657]
[1643801627804,0.86726655,2757.4,2756.8,0.05115657]
[1643801629206,2.25553587,2757.6,2756.8,0.05115657]
[1643801629605,0.61571493,2757.5,2756.8,0.05115657]
[1643801629807,2.00619752,2757.4,2756.8,0.05115657]
[1643801630007,2.30619752,2757.4,2756.8,0.05115657]
[1643801630214,0.87896344,2757.3,2756.8,0.05115657]
[1643801630452,1.97619047,2757.2,2756.8,0.05115657]
[1643801631451,0.87896344,2757.3,2756.8,0.05115657]
[1643801631651,0.3,2757.4,2756.8,0.05115657]
[1643801631852,0.18101,2757.5,2756.8,0.05115657]
[1643801632457,2.59545572,2757.5,2756.8,0.05115657]
[1643801632857,2.89545572,2757.5,2756.8,0.05115657]
[1643801633059,2.89420962,2757.5,2756.8,0.05115657]
[1643801633459,2.71300962,2757.5,2756.8,0.05115657]
[1643801633661,0.4797639,2757.5,2756.8,0.05115657]
[1643801633860,0.18101,2757.5,2756.8,0.05115657]
[1643801634102,0.1812,2757.6,2756.8,0.05115657]
[1643801634302,2.82155096,2757.7,2756.9,0.71886824]
[1643801634506,0.1812,2757.7,2757.0,0.00170589]
[1643801634700,1.1675,2757.8,2757.0,0.05286246]
[1643801634701,1.3487,2757.8,2757.0,0.05286246]
[1643801634902,2.1626959,2757.8,2757.0,0.05286246]
[1643801635103,0.1812,2757.8,2757.0,0.05286246]
[1643801635703,0.1812,2757.8,2757.4,0.8345415]
[1643801635905,0.1812,2758.0,2757.4,0.8345415]
[1643801636104,0.1812,2758.3,2757.4,0.8489868]
[1643801636305,0.1812,2758.3,2757.5,0.25]
[1643801636505,0.18101,2758.2,2757.5,0.4312]
[1643801636705,0.1812,2758.4,2757.6,0.00170589]
[1643801636906,0.55428726,2758.4,2757.6,0.00170589]
[1643801637106,0.18101,2758.3,2757.6,0.00170589]
[1643801637311,1.05006633,2758.3,2757.6,0.00170589]
[1643801637707,3.09220571,2758.3,2757.6,0.00170589]
[1643801637965,3.09220571,2758.3,2757.7,0.05115657]
[1643801638169,3.39220571,2758.3,2757.5,0.25]
[1643801639166,3.21119571,2758.3,2757.5,0.25]
[1643801639366,0.37828682,2758.1,2757.5,0.25]
[1643801640168,2.03435731,2758.0,2757.5,0.25]
[1643801640772,0.67570873,2757.8,2757.5,0.25]
[1643801641802,0.99486914,2757.8,2757.5,0.25]
[1643801642201,2.4179477,2758.2,2757.5,0.25]
[1643801642601,2.38429835,2758.2,2757.5,0.25]
[1643801642804,1.95356037,2758.1,2757.5,0.25]
[1643801643412,1.07057307,2757.9,2757.5,0.25]
[1643801651408,1.53812075,2757.8,2757.5,0.25]
[1643801652007,3.49948087,2757.8,2757.5,0.25]
[1643801652206,1.53812075,2757.7,2757.5,0.25]
[1643801652409,1.53812075,2757.6,2757.5,0.25]
[1643801652607,1.07057307,2757.9,2757.5,0.25]
[1643801652853,1.53812801,2757.8,2757.5,0.25]
[1643801661656,1.53700553,2757.8,2757.5,0.25]
[1643801664705,0.1812,2758.2,2757.5,0.25]
[1643801664908,0.1812,2758.2,2757.5,0.25170217]
[1643801665608,1.12478434,2758.2,2757.5,0.25170217]
[1643801665806,0.94377434,2758.2,2758.0,0.5]
[1643801666210,0.94377434,2758.2,2758.0,0.42]
[1643801667008,0.31529947,2758.1,2757.6,0.00170217]
[1643801669468,0.76257434,2758.2,2757.6,0.00170217]
[1643801669665,0.1812,2758.4,2757.6,0.00170217]
[1643801669866,0.1812,2758.5,2757.7,0.90649]
[1643801670068,0.3,2758.6,2757.7,0.90649]
[1643801670265,0.48101,2758.6,2757.7,0.90649]
[1643801670667,0.42127044,2758.3,2757.7,0.90649]
[1643801670866,1.17062556,2758.3,2757.7,1.08769]
[1643801673916,0.42127044,2758.3,2757.7,1.08769]
[1643801674119,0.48101,2758.6,2757.7,1.08769]
[1643801674315,2.04409533,2758.7,2757.7,1.08769]
[1643801674316,1.3593,2758.7,2757.7,1.08769]
[1643801674916,3.30539375,2758.7,2757.7,1.08769]
[1643801675117,0.34352676,2758.4,2757.7,1.08769]
[1643801675755,0.34352676,2758.4,2757.8,0.523]
[1643801675958,0.31939997,2758.8,2758.0,0.90634]
[1643801676157,0.68479533,2758.9,2758.0,0.90634]
[1643801676456,0.1812,2759.0,2758.0,0.90634]
[1643801677055,0.33037139,2758.7,2758.0,1.65500138]
[1643801678065,0.1812,2759.0,2758.1,3.41275528]
[1643801678264,0.4312,2759.4,2758.5,0.90607]
[1643801678461,0.25,2759.4,2758.6,0.1812]
[1643801678663,2.0,2759.6,2758.8,0.25]
[1643801678664,2.68479533,2759.6,2758.8,0.25]
[1643801678862,2.86599533,2759.6,2758.8,0.25]
[1643801679312,0.68479533,2759.5,2758.8,0.25]
[1643801679521,0.1812,2759.8,2759.0,0.90603]
[1643801679716,2.46014826,2759.9,2759.1,0.7041]
[1643801679919,3.14494359,2759.9,2759.1,0.7041]
[1643801680217,0.1,2760.0,2759.1,0.7041]
[1643801680417,0.41544944,2760.0,2759.5,0.90589]
[1643801680617,0.41544944,2760.0,2759.3,0.4311]
[1643801681017,0.1,2760.0,2759.3,0.4311]
[1643801681618,0.1,2760.0,2759.3,2.76936373]
[1643801681822,1.53717807,2759.9,2759.3,2.76936373]
[1643801682021,1.53717807,2759.9,2759.4,0.9058317]
[1643801682219,1.53717807,2759.9,2759.5,0.90589]
[1643801683264,1.53717807,2759.9,2759.4,1.81167]
[1643801683663,0.95176567,2759.7,2759.4,1.81167]
[1643801684063,1.53728895,2759.6,2759.3,0.4311]
[1643801684267,1.9088645,2759.6,2759.3,0.4311]
[1643801684463,0.37157555,2759.6,2759.3,0.4311]
[1643801685765,1.53739819,2759.5,2759.3,0.25]
[1643801686264,1.53739819,2759.5,2759.3,0.1531898]
[1643801687516,2.58279819,2759.5,2758.8,0.1811]
[1643801687716,2.58279819,2759.5,2758.4,2.1812]
[1643801687717,1.71859819,2759.4,2758.4,2.1812]
[1643801687918,1.53739819,2759.3,2757.9,2.1812]
[1643801688218,0.36221,2759.2,2757.9,2.0]
[1643801688418,1.53739819,2759.1,2757.9,2.0]
[1643801688619,0.77640424,2758.4,2757.9,2.0]
[1643801689818,0.31966524,2758.0,2757.9,2.0]
[1643801690023,0.31966524,2758.0,2757.7,0.1812]
[1643801691058,0.77640424,2758.4,2757.7,0.1812]
[1643801691265,0.77640424,2758.4,2757.6,9.44248277]
[1643801691464,0.1812,2758.6,2757.6,9.44248277]
[1643801691659,0.1812,2758.6,2757.7,0.9064]
[1643801692158,0.3942986,2758.2,2757.7,0.9064]
[1643801693964,0.3942986,2758.2,2757.6,0.1812]
[1643801694610,0.77207718,2758.4,2757.6,0.1812]
[1643801694810,0.77207718,2758.4,2757.6,1.97957837]
[1643801695010,0.77207718,2758.4,2757.6,0.1812]
[1643801695713,0.40680859,2757.9,2757.6,0.1812]
[1643801696316,0.40680859,2757.9,2757.4,0.18290217]
[1643801696514,0.40680859,2757.9,2757.4,0.43290217]
[1643801697015,0.40680859,2757.9,2757.4,1.20989243]
[1643801698472,0.1812,2758.3,2757.5,1.82630813]
[1643801698971,0.1812,2758.3,2757.4,1.20989243]
[1643801699774,0.44070368,2757.9,2757.4,1.20989243]
[1643801699972,0.95327718,2758.4,2757.5,1.81433756]
[1643801700581,0.95327718,2758.4,2757.4,1.20989243]
[1643801701611,0.33183709,2758.0,2757.4,1.20989243]
[1643801701813,0.33183709,2758.0,2757.5,1.80524412]
[1643801702012,0.95327718,2758.4,2757.5,1.80524412]
[1643801703216,0.33796647,2758.2,2757.4,2.11639923]
[1643801704317,0.33796647,2758.2,2757.4,2.12639923]
[1643801706263,0.33796647,2758.2,2757.4,2.12469706]
[1643801707971,0.33796647,2758.2,2757.4,2.42469706]
[1643801708370,0.33796647,2758.2,2757.4,1.6477068]
[1643801708569,0.33796647,2758.2,2757.4,0.7412]
[1643801709207,0.33699731,2758.2,2757.4,0.7412]
[1643801709609,1.53804401,2758.1,2757.4,0.7412]
[1643801709811,0.33699731,2758.2,2757.4,0.4412]
[1643801711818,0.33699731,2758.2,2757.4,0.7412]
[1643801712516,0.95327718,2758.4,2757.4,0.7412]
[1643801712715,1.53786479,2758.3,2757.4,0.7412]
[1643801713569,0.37004381,2758.0,2757.4,0.7412]
[1643801715973,0.37004381,2758.0,2757.4,0.4412]
[1643801718033,0.37004381,2758.0,2757.4,0.26]
[1643801718933,0.83145477,2757.9,2757.4,0.26]
[1643801719334,0.37004381,2758.0,2757.4,0.26]
[1643801719937,0.36521383,2758.0,2757.4,0.26]
[1643801725116,0.36521383,2758.0,2757.4,1.166516]
[1643801725313,0.48101,2758.2,2757.4,1.166516]
[1643801725521,1.53790865,2758.1,2757.5,1.77730496]
[1643801725717,0.1812,2758.4,2757.5,1.77730496]
[1643801725917,0.18101,2758.7,2757.6,0.523]
[1643801726116,0.18101,2758.7,2757.8,0.36157447]
[1643801726117,1.53766432,2758.6,2757.8,0.36157447]
[1643801726321,1.53766432,2758.6,2758.0,0.25]
[1643801726520,1.95327023,2758.6,2758.0,0.25]
[1643801726721,1.53766432,2758.5,2758.0,0.25]
[1643801728970,1.53766432,2758.5,2758.0,0.25]
[1643801733317,1.95873908,2758.5,2758.0,0.25]
[1643801733516,1.53766432,2758.4,2758.0,0.25]
[1643801734121,1.53766432,2758.3,2758.0,0.25]
[1643801734319,1.53766432,2758.2,2758.0,0.25]
[1643801734521,1.53766432,2758.1,2758.0,0.25]
[1643801734720,0.1812,2758.6,2758.0,0.25]
[1643801734721,1.53766432,2758.5,2758.0,0.25]
[1643801735364,1.53766432,2758.5,2758.0,0.24872086]
[1643801735765,0.44910258,2758.4,2758.0,0.24872086]
[1643801735963,1.53766432,2758.3,2758.0,0.24872086]
[1643801736163,1.53766432,2758.2,2758.0,0.24872086]
[1643801736365,1.53766432,2758.1,2758.0,0.24872086]
[1643801736768,1.53766432,2758.5,2758.0,0.24872086]
[1643801736963,1.53766432,2758.4,2758.0,0.24872086]
[1643801737164,1.53766432,2758.3,2758.0,0.24872086]
[1643801737365,1.53766432,2758.2,2758.0,0.24872086]
[1643801737566,1.53766432,2758.1,2758.0,0.24872086]
[1643801737969,1.53766432,2758.2,2758.0,0.24872086]
[1643801738166,1.53766432,2758.1,2758.0,0.24872086]
[1643801738367,1.53766432,2758.5,2758.0,0.24872086]
[1643801739231,0.40306592,2758.4,2758.0,0.24872086]
[1643801739442,1.53766432,2758.3,2758.0,0.24872086]
[1643801739634,1.53766432,2758.2,2758.0,0.24872086]
[1643801739834,1.53766432,2758.1,2758.0,2.05960911]
[1643801740037,1.53766432,2758.1,2758.0,0.24872086]
[1643801740234,1.53766432,2758.6,2758.0,0.24872086]
[1643801740435,0.38253178,2758.4,2758.0,0.24872086]
[1643801740637,1.53766432,2758.3,2758.0,0.24872086]
[1643801742039,1.4983168,2758.3,2758.0,0.24872086]
[1643801745073,3.45627179,2758.3,2758.0,0.24872086]
[1643801745272,1.95795499,2758.3,2758.0,0.24872086]
[1643801745571,0.38253178,2758.4,2758.0,0.24872086]
[1643801745773,0.82304935,2758.1,2758.0,0.24872086]
[1643801747715,1.96266358,2758.3,2758.0,0.24872086]
[1643801747920,0.38253178,2758.4,2758.0,0.24872086]
[1643801749125,0.83012493,2758.3,2758.0,0.24872086]
[1643801750372,0.83012493,2758.3,2758.1,0.24872086]
[1643801750575,0.37829827,2757.9,2757.7,0.90646]
[1643801751172,0.37829827,2757.9,2757.7,1.81291]
[1643801751572,0.83012493,2758.3,2757.7,1.81291]
[1643801752775,0.3860505,2757.9,2757.7,1.81291]
[1643801754218,0.83012493,2758.3,2757.7,1.81291]
[1643801754415,0.86599533,2758.5,2757.7,1.81291]
[1643801755518,0.32009056,2758.0,2757.7,1.81291]
[1643801760378,0.80837234,2758.4,2757.7,1.81291]
[1643801760575,2.81610736,2758.4,2757.7,1.81291]
[1643801760772,0.80837234,2758.4,2757.7,1.81291]
[1643801761393,0.41426514,2757.9,2757.7,1.81291]
[1643801761617,0.80837234,2758.4,2758.0,0.90641]
[1643801762218,1.53776305,2758.3,2758.0,0.90641]
[1643801762928,0.39665574,2758.1,2758.0,0.90641]
[1643801763126,1.93441879,2758.1,2758.0,0.90641]
[1643801767772,1.93441879,2758.1,2757.9,2.7292]
[1643801767977,1.53776305,2758.0,2757.9,2.7292]
[1643801769219,0.68479533,2758.5,2758.0,0.90639]
[1643801769419,2.22269006,2758.5,2758.0,0.90639]
[1643801771726,0.37292754,2758.4,2758.0,0.90639]
[1643801771928,1.53789473,2758.3,2758.0,0.90639]
[1643801773284,1.53789473,2758.3,2758.1,0.90635]
[1643801773878,1.53630729,2758.3,2758.1,0.90635]
[1643801774678,1.53630729,2758.3,2758.1,2.6743986]
[1643801774978,0.1812,2758.8,2758.3,0.90627]
[1643801774979,0.86599533,2758.8,2758.3,0.90627]
[1643801775179,0.86599533,2758.8,2758.3,0.90535316]
[1643801775783,1.81018709,2758.8,2758.3,0.90535316]
[1643801775978,0.35273975,2758.4,2758.3,0.90535316]
[1643801776179,0.35273975,2758.4,2758.3,1.81162316]
[1643801777226,0.35273975,2758.4,2758.3,0.90627]
[1643801777930,1.62898709,2758.8,2758.3,0.90627]
[1643801779033,0.42762284,2758.6,2758.3,0.90627]
[1643801782377,0.00273987,2758.7,2758.3,0.90627]
[1643801782577,0.68479533,2758.8,2758.3,1.81256]
[1643801783584,1.07114215,2758.8,2758.3,1.81256]
[1643801783781,0.38634682,2758.8,2758.3,1.81256]
[1643801783982,1.07114215,2758.8,2758.3,1.81256]
[1643801786023,1.07114215,2758.8,2758.4,0.9062729]
[1643801786226,1.07114215,2758.8,2758.3,1.07858251]
[1643801787023,1.07114215,2758.8,2758.4,0.9062729]
[1643801787223,1.07114215,2758.8,2758.3,1.07858251]
[1643801789176,1.07114215,2758.8,2758.3,1.98485361]
[1643801789377,1.07114215,2758.8,2758.4,1.81259]
[1643801792225,0.68479533,2758.8,2758.4,1.81259]
[1643801792428,0.68479533,2758.8,2758.4,2.71886]
[1643801794233,2.22253078,2758.8,2758.4,2.71886]
[1643801794432,1.53773545,2758.7,2758.4,2.71886]
[1643801794732,1.53773545,2758.6,2758.4,2.71886]
[1643801795033,1.53773545,2758.5,2758.4,2.71886]
[1643801795881,1.53773545,2758.5,2758.4,1.81259]
[1643801796077,0.00273987,2758.7,2758.4,1.81259]
[1643801796276,2.22253078,2758.8,2758.4,1.81259]
[1643801799330,2.22253078,2758.8,2758.4,2.71886]
[1643801799923,2.22253078,2758.8,2758.4,1.81259]
[1643801808627,2.22253078,2758.7,2758.4,0.17232092]
[1643801808828,1.53773545,2758.6,2758.4,0.17232092]
[1643801809032,1.53773545,2758.5,2758.4,0.17232092]
[1643801809428,0.00273987,2758.7,2758.4,0.17232092]
[1643801809831,1.53773545,2758.7,2758.4,0.17232092]
[1643801810029,1.53773545,2758.6,2758.4,0.17232092]
[1643801810376,1.53773545,2758.5,2758.4,0.17232092]
[1643801810578,1.53773545,2758.8,2758.4,0.17232092]
[1643801810777,2.22253078,2758.8,2758.4,0.17232092]
[1643801811180,2.22253078,2758.8,2758.4,1.98485672]
[1643801813185,1.53773545,2758.7,2758.5,1.8124505]
[1643801813387,0.00273987,2758.9,2758.6,8.68500581]
[1643801813587,1.53734496,2759.0,2758.7,1.81197]